bitfinex/quotes_SOLUSD_20241107
["timestamp","ask_amount","ask_price","bid_price","bid_amount"]
[1730943330684,27.89074007,190.32,190.24,27.89074007]
[1730943331209,27.89074007,190.31,190.24,27.89074007]
[1730943331495,27.89074007,190.28,190.21,27.89074007]
[1730943331698,27.89074007,190.28,190.22,27.89074007]
[1730943332407,27.89074007,190.3,190.23,27.89074007]
[1730943332583,27.89074007,190.29,190.23,27.89074007]
[1730943332775,27.89074007,190.28,190.22,27.89074007]
[1730943333288,27.89074007,190.29,190.22,27.89074007]
[1730943333493,27.89074007,190.29,190.23,27.89074007]
[1730943333685,27.89074007,190.29,190.22,27.89074007]
[1730943334493,27.89074007,190.29,190.23,27.89074007]
[1730943335174,27.89074007,190.3,190.24,27.89074007]
[1730943335380,27.89074007,190.28,190.22,27.89074007]
[1730943335595,27.89074007,190.29,190.23,27.89074007]
[1730943337404,27.89074007,190.3,190.24,27.89074007]
[1730943337607,27.89074007,190.29,190.23,27.89074007]
[1730943338284,27.89074007,190.28,190.22,27.89074007]
[1730943338497,27.89074007,190.29,190.22,27.89074007]
[1730943338692,1.1347,190.37,190.24,27.89074007]
[1730943339000,27.89074007,190.33,190.24,27.89074007]
[1730943339175,27.89074007,190.32,190.24,27.89074007]
[1730943339376,27.89074007,190.31,190.19,43.776884]
[1730943339610,27.89074007,190.31,190.24,27.89074007]
[1730943340108,27.89074007,190.33,190.24,51.66762407]
[1730943340279,27.89074007,190.32,190.24,51.66762407]
[1730943340484,27.89074007,190.31,190.24,51.66762407]
[1730943340997,1.2347,190.37,190.24,51.66762407]
[1730943340998,27.89074007,190.33,190.24,51.66762407]
[1730943341181,1.1347,190.37,190.24,71.66762407]
[1730943341500,27.89074007,190.36,190.24,71.66762407]
[1730943341704,27.89074007,190.34,190.24,43.776884]
[1730943341905,27.89074007,190.34,190.24,71.66762407]
[1730943342199,1.1347,190.37,190.24,71.66762407]
[1730943342200,27.89074007,190.35,190.24,71.66762407]
[1730943342412,27.89074007,190.36,190.24,43.776884]
[1730943342573,27.89074007,190.35,190.24,71.66762407]
[1730943342775,27.89074007,190.34,190.24,71.66762407]
[1730943343006,27.89074007,190.34,190.24,43.776884]
[1730943343188,27.89074007,190.35,190.24,71.66762407]
[1730943343374,27.89074007,190.35,190.24,43.776884]
[1730943343575,6e-07,190.25,190.24,73.05114505]
[1730943343899,1.1347,190.37,190.31,43.876884]
[1730943344102,1.1347,190.37,190.36,27.89074007]
[1730943345201,0.5876006,190.44,190.36,71.76762407]
[1730943345384,0.5876006,190.44,190.41,27.89074007]
[1730943346321,28.47834067,190.44,190.37,27.89074007]
[1730943346518,27.89074007,190.42,190.36,51.66762407]
[1730943346685,27.89074007,190.4,190.34,27.89074007]
[1730943346891,22.13799,190.43,190.25,21.7603]
[1730943347091,0.1,190.4,190.25,6.4276]
[1730943347788,0.1,190.41,190.25,6.4276]
[1730943347988,27.89074007,190.36,190.29,27.89074007]
[1730943348610,27.89074007,190.36,190.3,51.66762407]
[1730943348817,0.5876006,190.44,190.32,43.776884]
[1730943348989,0.5876006,190.44,190.41,27.89074007]
[1730943349404,0.5876006,190.44,190.42,27.89074007]
[1730943349916,0.5876006,190.44,190.36,6.5149]
[1730943349917,0.5876006,190.44,190.43,27.89074007]
[1730943350087,0.5876006,190.44,190.43,51.66762407]
[1730943350990,0.5876006,190.44,190.43,71.66762407]
[1730943352535,0.5876006,190.44,190.43,43.776884]
[1730943352710,5.57776916,190.61,190.45,20.0]
[1730943352912,27.89074007,190.58,190.51,27.89074007]
[1730943353093,27.89074007,190.57,190.49,27.89074007]
[1730943353419,27.89074007,190.56,190.49,27.89074007]
[1730943353924,27.89074007,190.53,190.46,27.89074007]
[1730943354110,27.89074007,190.54,190.47,27.89074007]
[1730943354309,27.89074007,190.52,190.45,51.66762407]
[1730943354520,0.1,190.58,190.45,51.66762407]
[1730943354730,27.89074007,190.52,190.45,27.89074007]
[1730943355018,33.95434316,190.63,190.48,27.89074007]
[1730943355019,27.89074007,190.55,190.48,27.89074007]
[1730943355222,27.89074007,190.53,190.42,20.0]
[1730943355403,27.89074007,190.56,190.49,27.89074007]
[1730943355608,0.1,190.58,190.43,23.776884]
[1730943355797,0.1,190.58,190.44,20.0]
[1730943356196,0.1,190.59,190.45,23.776884]
[1730943356427,0.1,190.58,190.45,23.776884]
[1730943356937,27.89074007,190.53,190.46,27.89074007]
[1730943357222,22.0527,190.56,190.43,27.89074007]
[1730943357419,27.89074007,190.5,190.43,27.89074007]
[1730943357596,27.89074007,190.51,190.44,27.89074007]
[1730943358015,27.89074007,190.53,190.46,27.89074007]
[1730943358492,27.89074007,190.51,190.44,27.89074007]
[1730943358695,21.9527,190.56,190.43,27.89074007]
[1730943358696,27.89074007,190.5,190.43,27.89074007]
[1730943358896,27.89074007,190.48,190.41,27.89074007]
[1730943359091,27.89074007,190.48,190.39,23.776884]
[1730943359092,27.89074007,190.47,190.38,16.3519]
[1730943359326,0.1,190.54,190.4,27.89074007]
[1730943359625,27.89074007,190.51,190.44,27.89074007]
[1730943359921,27.89074007,190.46,190.39,27.89074007]
[1730943360525,27.89074007,190.46,190.36,6.5149]
[1730943360526,27.89074007,190.44,190.38,27.89074007]
[1730943361091,27.89074007,190.43,190.36,27.89074007]
[1730943361326,27.89074007,190.41,190.32,6.5809]
[1730943361527,27.89074007,190.41,190.34,27.89074007]
[1730943361899,27.89074007,190.42,190.36,27.89074007]
[1730943362103,27.89074007,190.45,190.39,27.89074007]
[1730943362318,27.89074007,190.45,190.38,27.89074007]
[1730943362528,27.89074007,190.44,190.37,27.89074007]
[1730943362726,0.1,190.5,190.36,27.89074007]
[1730943362727,27.89074007,190.43,190.36,27.89074007]
[1730943362902,27.89074007,190.41,190.33,5.254]
[1730943363104,0.1,190.45,190.33,33.14474007]
[1730943363312,27.89074007,190.42,190.35,27.89074007]
[1730943363520,27.89074007,190.41,190.34,27.89074007]
[1730943363724,27.89074007,190.41,190.35,27.89074007]
[1730943364327,27.89074007,190.4,190.33,27.89074007]
[1730943364637,27.89074007,190.41,190.34,27.89074007]
[1730943364822,27.89074007,190.41,190.35,27.89074007]
[1730943365016,27.89074007,190.45,190.38,27.89074007]
[1730943365526,27.89074007,190.45,190.3,27.89074007]
[1730943365527,27.89074007,190.44,190.37,27.89074007]
[1730943365729,27.89074007,190.43,190.37,27.89074007]
[1730943365925,27.89074007,190.44,190.38,27.89074007]
[1730943366227,6.3489,190.55,190.43,27.89074007]
[1730943366537,27.89074007,190.49,190.42,27.89074007]
[1730943366699,6.3489,190.55,190.41,27.89074007]
[1730943366700,27.89074007,190.48,190.41,27.89074007]
[1730943367030,27.89074007,190.45,190.38,27.89074007]
[1730943367210,27.89074007,190.44,190.38,27.89074007]
[1730943367602,27.89074007,190.45,190.38,27.89074007]
[1730943367804,6.3489,190.55,190.42,27.89074007]
[1730943367999,27.89074007,190.5,190.43,27.89074007]
[1730943369235,27.89074007,190.5,190.37,23.776884]
[1730943369236,6.3489,190.55,190.49,27.89074007]
[1730943369540,33.89764007,190.61,190.54,27.89074007]
[1730943369907,27.89074007,190.58,190.51,27.89074007]
[1730943370107,6.0069,190.61,190.42,20.32549]
[1730943370309,6.0069,190.61,190.44,20.0]
[1730943370508,6.0069,190.61,190.45,23.776884]
[1730943370736,16.9721006,190.63,190.48,20.12549]
[1730943371034,16.9721006,190.63,190.51,23.776884]
[1730943371241,0.5876006,190.63,190.57,27.89074007]
[1730943371410,27.89074007,190.62,190.55,27.89074007]
[1730943371739,0.5876006,190.63,190.57,27.89074007]
[1730943371940,0.5876006,190.63,190.55,27.89074007]
[1730943371941,27.89074007,190.62,190.55,27.89074007]
[1730943372140,0.5876006,190.63,190.52,27.89074007]
[1730943372141,27.89074007,190.59,190.52,27.89074007]
[1730943372344,27.89074007,190.59,190.53,27.89074007]
[1730943372511,27.89074007,190.6,190.53,27.89074007]
[1730943373309,27.89074007,190.57,190.5,27.89074007]
[1730943373509,0.5876006,190.63,190.53,27.89074007]
[1730943373824,0.5876006,190.63,190.45,43.776884]
[1730943374144,27.89074007,190.58,190.51,27.89074007]
[1730943374647,27.89074007,190.62,190.55,27.89074007]
[1730943374942,28.47834067,190.63,190.56,27.89074007]
[1730943375315,28.47834067,190.63,190.57,27.89074007]
[1730943375514,0.5876006,190.63,190.62,27.89074007]
[1730943376111,0.5876006,190.63,190.61,27.89074007]
[1730943376826,0.5876006,190.63,190.59,27.89074007]
[1730943377033,28.47834067,190.63,190.57,27.89074007]
[1730943377230,0.5876006,190.63,190.57,27.89074007]
[1730943377715,0.5876006,190.63,190.6,27.89074007]
[1730943377913,0.5876006,190.63,190.62,27.89074007]
[1730943378331,0.5876006,190.63,190.62,51.66762407]
[1730943378823,0.5876006,190.63,190.62,72.64144707]
[1730943379146,6.5437,190.78,190.63,43.776884]
[1730943379446,27.89074007,190.74,190.67,27.89074007]
[1730943379816,27.89074007,190.72,190.65,27.89074007]
[1730943380022,0.12549,190.8,190.69,27.89074007]
[1730943380216,16.5010006,190.82,190.63,43.776884]
[1730943380217,16.5010006,190.82,190.72,27.89074007]
[1730943380530,27.89074007,190.81,190.74,27.89074007]
[1730943380725,16.5010006,190.82,190.72,27.89074007]
[1730943380726,27.89074007,190.79,190.72,27.89074007]
[1730943380923,27.89074007,190.75,190.67,43.776884]
[1730943381137,27.89074007,190.76,190.69,27.89074007]
[1730943381337,27.89074007,190.77,190.7,27.89074007]
[1730943381541,16.5010006,190.82,190.68,27.89074007]
[1730943381542,27.89074007,190.75,190.68,27.89074007]
[1730943382122,16.5010006,190.82,190.66,15.9019]
[1730943382123,16.5010006,190.82,190.7,27.89074007]
[1730943382330,0.5876006,190.82,190.79,27.89074007]
[1730943382521,0.5876006,190.82,190.78,27.89074007]
[1730943382724,0.5876006,190.82,190.81,27.89074007]
[1730943382941,0.5876006,190.82,190.81,51.66762407]
[1730943383344,3.99206969,190.88,190.81,43.776884]
[1730943383649,3.99206969,190.88,190.86,27.89074007]
[1730943383869,3.99206969,190.88,190.84,27.89074007]
[1730943384069,3.99206969,190.88,190.87,27.89074007]
[1730943384384,3.99206969,190.88,190.85,27.89074007]
[1730943384385,3.49206969,190.88,190.85,27.89074007]
[1730943384550,3.49206969,190.88,190.84,27.89074007]
[1730943385076,3.49206969,190.88,190.87,27.89074007]
[1730943385446,3.49206969,190.88,190.86,23.776884]
[1730943385751,3.49206969,190.88,190.86,51.66762407]
[1730943385967,3.49206969,190.88,190.87,27.89074007]
[1730943386171,3.49206969,190.88,190.87,71.66762407]
[1730943386551,1.65,191.0,190.92,0.1]
[1730943386745,1.65,191.0,190.99,51.66762407]
[1730943386984,1.65,191.0,190.98,23.776884]
[1730943387275,1.65,191.0,190.95,51.66762407]
[1730943387479,1.65,191.0,190.97,27.89074007]
[1730943387652,1.65,191.0,190.96,27.89074007]
[1730943388279,1.65,191.0,190.97,51.66762407]
[1730943388489,1.65,191.0,190.97,23.776884]
[1730943388782,29.54074007,191.0,190.97,23.776884]
[1730943389157,1.65,191.0,190.97,23.776884]
[1730943389357,27.89074007,190.99,190.97,23.776884]
[1730943389554,29.54074007,191.0,190.97,23.776884]
[1730943389754,27.89074007,190.98,190.91,20.0]
[1730943389957,27.89074007,190.98,190.91,27.89074007]
[1730943390574,27.89074007,190.98,190.91,6.27547948]
[1730943390877,27.89074007,190.92,190.85,0.1]
[1730943391076,1.65,191.0,190.85,0.1]
[1730943391077,1.65,191.0,190.87,27.89074007]
[1730943391281,27.89074007,190.96,190.89,27.89074007]
[1730943391489,27.89074007,190.96,190.88,27.89074007]
[1730943391661,1.65,191.0,190.96,0.12549]
[1730943391992,1.65,191.0,190.97,6.17804632]
[1730943392287,1.65,191.0,190.97,5.1314189]
[1730943392595,1.65,191.0,190.98,23.776884]
[1730943392886,1.65,191.0,190.97,23.776884]
[1730943393189,1.65,191.0,190.98,2.09363]
[1730943393490,1.65,191.0,190.89,6.0477]
[1730943393657,27.89074007,190.91,190.89,6.0477]
[1730943393859,1.65,191.0,190.89,6.0477]
[1730943394084,1.65,191.0,190.9,2.094171]
[1730943394292,1.65,191.0,190.91,0.12549]
[1730943394481,1.65,191.0,190.91,0.1]
[1730943394690,1.65,191.0,190.94,0.1]
[1730943394864,1.65,191.0,190.95,5.97772049]
[1730943395059,27.89074007,190.98,190.97,0.12549]
[1730943395278,27.89074007,190.98,190.97,5.0567089]
[1730943395474,27.89074007,190.98,190.97,28.8335929]
[1730943395689,1.65,191.0,190.98,23.776884]
[1730943395963,29.54074007,191.0,190.99,29.17176957]
[1730943396470,1.65,191.0,190.99,29.17176957]
[1730943396665,29.54074007,191.0,190.99,29.17176957]
[1730943396869,0.5876006,191.02,191.01,44.002374]
[1730943397079,10.77166031,191.15,191.02,20.0]
[1730943397080,27.89074007,191.12,191.02,20.0]
[1730943397260,27.89074007,191.06,191.03,23.776884]
[1730943397461,27.89074007,191.04,191.03,23.776884]
[1730943397670,27.89074007,191.04,191.02,23.776884]
[1730943398391,27.89074007,191.03,191.02,23.776884]
[1730943398890,27.89074007,191.03,190.96,6.2242]
[1730943399091,27.89074007,191.07,190.96,6.2242]
[1730943399494,10.87166031,191.15,190.96,6.2242]
[1730943399666,10.77166031,191.15,190.97,5.00151061]
[1730943399874,0.1,191.12,190.97,4.90151061]
[1730943400176,0.1,191.09,190.92,15.5067]
[1730943400379,0.1,191.07,190.92,15.5067]
[1730943400586,0.1,191.12,190.92,43.39744007]
[1730943400905,27.89074007,191.02,190.95,0.12549]
[1730943401068,27.89074007,190.97,190.93,1.04664015]
[1730943401270,27.89074007,190.95,190.92,15.5067]
[1730943401582,27.89074007,190.96,190.93,0.12549]
[1730943401780,0.1,191.08,190.93,0.12549]
[1730943401992,27.89074007,190.94,190.93,0.12549]
[1730943402166,27.89074007,190.94,190.93,23.902374]
[1730943402793,0.1,191.1,190.93,24.002374]
[1730943402988,20.0,191.14,190.95,23.902374]
[1730943402989,27.89074007,190.96,190.95,23.902374]
[1730943403164,0.1,191.13,190.95,23.902374]
[1730943403368,27.89074007,191.02,190.97,23.776884]
[1730943403596,27.89074007,191.0,190.97,23.776884]
[1730943403777,27.89074007,191.07,190.97,23.776884]
[1730943403778,27.89074007,190.98,190.97,23.776884]
[1730943403977,27.89074007,190.98,190.92,15.5067]
[1730943404288,27.89074007,190.96,190.94,0.12549]
[1730943404468,27.89074007,190.99,190.95,0.1]
[1730943404670,10.77166031,191.15,190.99,0.1]
[1730943404871,10.77166031,191.15,191.01,0.1]
[1730943405170,10.77166031,191.15,191.03,6.49049]
[1730943405371,10.77166031,191.15,191.05,0.12549]
[1730943405603,10.77166031,191.15,191.05,6.21667239]
[1730943405778,27.89074007,191.08,191.03,6.365]
[1730943405967,27.89074007,191.08,191.04,0.12549]
[1730943406174,27.89074007,191.05,191.03,6.15340572]
[1730943406499,10.77166031,191.15,191.02,0.12549]
[1730943406500,27.89074007,191.07,191.02,0.12549]
[1730943406669,27.89074007,191.05,191.02,0.12549]
[1730943407074,27.89074007,191.04,191.0,0.12549]
[1730943407294,27.89074007,191.01,190.91,6.365]
[1730943407601,27.89074007,190.94,190.91,6.365]
[1730943407775,10.77166031,191.15,190.97,0.1]
[1730943408091,10.77166031,191.15,190.95,0.1]
[1730943408092,27.89074007,191.04,190.95,0.1]
[1730943408399,27.89074007,191.03,190.96,27.89074007]
[1730943408573,27.89074007,191.03,190.97,20.12549]
[1730943408771,10.77166031,191.15,191.02,0.12549]
[1730943408973,27.89074007,191.1,191.02,0.12549]
[1730943409173,27.89074007,191.07,191.03,6.11534461]
[1730943409370,10.77166031,191.15,190.98,0.1]
[1730943409371,27.89074007,191.04,190.98,6.11534461]
[1730943409667,27.89074007,190.99,190.93,20.0]
[1730943409870,27.89074007,190.98,190.91,6.365]
[1730943410071,27.89074007,190.98,190.93,0.12549]
[1730943410378,6.1233,191.09,190.91,6.465]
[1730943410379,27.89074007,190.99,190.91,6.365]
[1730943410585,27.89074007,190.99,190.92,43.39744007]
[1730943411298,27.89074007,190.99,190.91,34.25574007]
[1730943411497,15.2143,191.06,190.93,27.89074007]
[1730943411679,27.89074007,191.01,190.94,27.89074007]
[1730943412003,27.89074007,191.01,190.93,27.89074007]
[1730943412208,27.89074007,190.99,190.91,39.02583591]
[1730943412406,27.89074007,190.96,190.9,3.14101545]
[1730943412630,27.89074007,190.97,190.9,29.98491107]
[1730943412902,27.89074007,190.97,190.91,0.12549]
[1730943413481,15.2143,191.06,190.91,0.12549]
[1730943413684,27.89074007,190.95,190.9,2.094171]
[1730943413932,15.3143,191.06,190.9,2.094171]
[1730943413933,27.89074007,190.92,190.9,2.094171]
[1730943414423,20.0,191.05,190.9,2.094171]
[1730943414597,27.89074007,190.96,190.89,27.89074007]
[1730943414795,20.0,191.05,190.88,27.89074007]
[1730943415002,27.89074007,190.95,190.88,47.89074007]
[1730943415316,27.89074007,190.93,190.88,20.0]
[1730943415699,27.89074007,190.89,190.82,1.04718302]
[1730943415903,27.89074007,190.86,190.82,0.03140949]
[1730943416101,27.89074007,190.86,190.78,1.04750466]
[1730943416102,27.89074007,190.88,190.8,27.89074007]
[1730943416330,16.1906,190.93,190.78,1.04750466]
[1730943416331,27.89074007,190.87,190.79,27.89074007]
[1730943416630,27.89074007,190.87,190.83,20.951332]
[1730943416935,27.89074007,190.89,190.83,20.951332]
[1730943417102,27.89074007,190.9,190.83,48.84207207]
[1730943417299,27.89074007,190.9,190.84,0.12549]
[1730943417611,27.89074007,190.94,190.86,28.01623007]
[1730943417815,27.89074007,190.95,190.88,28.01623007]
[1730943418126,27.89074007,190.96,190.88,33.83345519]
[1730943418423,27.89074007,190.96,190.9,0.12549]
[1730943418623,27.89074007,190.99,190.93,0.12549]
[1730943418827,27.89074007,191.0,190.93,0.12549]
[1730943419061,27.89074007,190.98,190.91,27.89074007]
[1730943419321,27.89074007,190.97,190.9,28.93757151]
[1730943419497,27.89074007,190.99,190.91,27.89074007]
[1730943419702,27.89074007,191.0,190.92,27.89074007]
[1730943419934,27.89074007,190.99,190.91,28.01623007]
[1730943420107,27.89074007,190.98,190.91,28.01623007]
[1730943420308,27.89074007,190.98,190.91,27.89074007]
[1730943420504,5.4635709,191.05,190.95,0.12549]
[1730943420722,5.4635709,191.05,191.0,27.89074007]
[1730943420925,27.89074007,191.05,190.97,28.01623007]
[1730943421104,27.89074007,191.03,190.97,34.0061003]
[1730943421418,27.89074007,191.01,190.94,20.12549]
[1730943421604,27.89074007,191.0,190.93,27.89074007]
[1730943421807,5.46271873,191.05,190.96,27.89074007]
[1730943422008,33.3534588,191.05,190.98,27.89074007]
[1730943422329,27.89074007,191.05,190.98,27.89074007]
[1730943422527,27.89074007,191.05,190.99,6.11536023]
[1730943422910,16.1392,191.13,190.99,6.11536023]
[1730943422911,27.89074007,191.09,191.02,28.01623007]
[1730943423123,27.89074007,191.13,191.06,27.89074007]
[1730943423336,27.89074007,191.11,191.05,0.12549]
[1730943423508,10.77166031,191.15,191.07,6.47683245]
[1730943423509,27.89074007,191.08,191.07,6.47683245]
[1730943423709,10.77166031,191.15,190.99,6.93995449]
[1730943423937,27.89074007,191.06,191.0,0.12549]
[1730943424223,27.89074007,191.07,191.0,0.12549]
[1730943424435,27.89074007,191.07,191.0,5.93845579]
[1730943424607,27.89074007,191.05,191.0,5.93845579]
[1730943424930,27.89074007,191.06,191.01,6.13074356]
[1730943425107,27.89074007,191.06,191.02,23.776884]
[1730943425309,27.89074007,191.05,191.02,23.776884]
[1730943425509,27.89074007,191.06,191.02,23.776884]
[1730943425828,27.89074007,191.03,190.93,7.91722867]
[1730943426031,27.89074007,190.97,190.93,7.91722867]
[1730943426528,27.89074007,190.97,190.93,6.6194]
[1730943426724,27.89074007,190.96,190.91,0.12549]
[1730943426923,27.89074007,190.97,190.91,0.12549]
[1730943427128,27.89074007,190.96,190.9,23.776884]
[1730943427644,44.07424007,191.07,190.88,6.2272]
[1730943427645,27.89074007,190.94,190.88,6.2272]
[1730943427823,27.89074007,190.95,190.89,0.12549]
[1730943428129,16.1835,191.07,190.9,27.89074007]
[1730943428318,27.89074007,190.96,190.89,27.89074007]
[1730943428518,27.89074007,190.95,190.88,35.16489138]
[1730943428829,27.89074007,190.95,190.89,0.12549]
[1730943429337,27.89074007,190.97,190.91,0.12549]
[1730943429509,27.89074007,190.96,190.91,0.12549]
[1730943429907,27.89074007,190.96,190.89,27.89074007]
[1730943430110,27.89074007,190.92,190.88,6.2272]
[1730943430332,0.2,191.06,190.88,6.2272]
[1730943430333,27.89074007,190.93,190.88,6.2272]
[1730943430708,0.1,191.1,190.89,27.89074007]
[1730943430904,10.77166031,191.15,190.94,22.1752]
[1730943431109,27.89074007,191.09,191.02,27.89074007]
[1730943431315,27.89074007,191.07,191.0,27.89074007]
[1730943431512,27.89074007,191.05,190.99,23.776884]
[1730943432008,27.89074007,191.03,190.97,23.776884]
[1730943432205,27.89074007,191.01,190.97,23.776884]
[1730943432822,27.89074007,191.01,190.95,23.776884]
[1730943433027,27.89074007,191.02,190.95,23.776884]
[1730943433224,27.89074007,191.02,190.93,28.93754177]
[1730943433410,27.89074007,191.02,190.94,27.89074007]
[1730943433737,27.89074007,191.03,190.96,0.12549]
[1730943434109,27.89074007,191.03,190.95,27.89074007]
[1730943434639,27.89074007,191.01,190.96,23.776884]
[1730943436028,27.89074007,191.01,190.94,23.776884]
[1730943437235,27.89074007,190.99,190.91,27.89074007]
[1730943437619,70.0,191.35,190.98,27.89074007]
[1730943437620,27.89074007,191.12,190.98,27.89074007]
[1730943437812,27.89074007,191.12,191.03,27.89074007]
[1730943438318,27.89074007,191.06,191.04,0.70921985]
[1730943440035,10.87166031,191.15,191.04,0.70921985]
[1730943440238,27.89074007,191.07,191.04,0.70921985]
[1730943440733,27.89074007,191.05,191.04,0.70921985]
[1730943442912,27.89074007,191.06,191.04,0.70921985]
[1730943443820,27.89074007,191.05,191.04,0.70921985]
[1730943444517,27.89074007,191.06,191.04,0.70921985]
[1730943444734,27.89074007,191.05,191.04,0.70921985]
[1730943444930,27.89074007,191.05,191.04,24.48610385]
[1730943445134,27.89074007,191.05,191.04,0.70921985]
[1730943445637,27.89074007,191.06,191.04,0.70921985]
[1730943446217,27.89074007,191.07,191.04,0.70921985]
[1730943446726,27.89074007,191.1,191.04,0.70921985]
[1730943447134,27.89074007,191.09,191.04,0.70921985]
[1730943447527,15.462,191.13,191.05,0.12549]
[1730943447841,27.89074007,191.12,191.04,27.89074007]
[1730943448140,27.89074007,191.1,191.03,27.89074007]
[1730943448319,27.89074007,191.1,191.02,27.89074007]
[1730943448516,27.89074007,191.09,191.02,27.89074007]
[1730943450450,27.89074007,191.07,191.0,27.89074007]
[1730943450936,15.562,191.13,191.0,0.12549]
[1730943450937,27.89074007,191.06,191.0,0.12549]
[1730943451112,27.89074007,191.06,190.99,27.89074007]
[1730943451417,27.89074007,191.04,190.97,27.89074007]
[1730943451614,27.89074007,191.03,190.96,28.93736654]
[1730943451813,27.89074007,191.0,190.93,28.93745028]
[1730943452019,27.89074007,190.97,190.93,1.04671021]
[1730943452241,27.89074007,190.97,190.9,27.89074007]
[1730943452449,0.1,191.0,190.88,4.52779029]
[1730943452450,27.89074007,190.95,190.88,32.41853036]
[1730943452620,27.89074007,190.95,190.89,5.2386]
[1730943453151,27.89074007,190.93,190.89,5.2386]
[1730943453354,27.89074007,190.91,190.89,5.2386]
[1730943453833,0.1,190.96,190.89,5.2386]
[1730943454037,27.89074007,190.9,190.89,5.2386]
[1730943454423,44.07924007,190.9,190.78,0.90893121]
[1730943454622,27.89074007,190.84,190.77,27.89074007]
[1730943455161,27.89074007,190.83,190.77,27.89074007]
[1730943455446,16.1885,190.9,190.81,27.89074007]
[1730943455739,16.1885,190.9,190.74,48.84376407]
[1730943455740,27.89074007,190.85,190.79,27.89074007]
[1730943455942,27.89074007,190.84,190.77,27.89074007]
[1730943456119,27.89074007,190.8,190.73,27.89074007]
[1730943456320,27.89074007,190.79,190.67,6.0423]
[1730943456522,27.89074007,190.79,190.72,27.89074007]
[1730943456722,27.89074007,190.79,190.73,28.59995992]
[1730943456933,27.89074007,190.8,190.73,28.59995992]
[1730943457338,27.89074007,190.78,190.73,0.70921985]
[1730943457659,27.89074007,190.79,190.73,0.70921985]
[1730943457824,20.0,190.89,190.74,28.01623007]
[1730943458018,16.3885,190.9,190.74,28.01623007]
[1730943458019,16.1885,190.9,190.74,0.12549]
[1730943458453,27.89074007,190.84,190.77,0.12549]
[1730943458747,27.89074007,190.82,190.77,0.12549]
[1730943458969,27.89074007,190.83,190.77,0.12549]
[1730943459131,27.89074007,190.84,190.77,0.12549]
[1730943459331,27.89074007,190.83,190.76,0.12549]
[1730943459563,27.89074007,190.83,190.75,27.89074007]
[1730943460359,27.89074007,190.83,190.7,1.14782179]
[1730943460360,27.89074007,190.85,190.78,0.12549]
[1730943460532,27.89074007,190.89,190.82,27.89074007]
[1730943460856,22.7264,190.97,190.88,27.89074007]
[1730943461073,27.89074007,190.95,190.88,27.89074007]
[1730943461359,27.89074007,190.95,190.89,0.12549]
[1730943461544,27.89074007,190.96,190.89,0.12549]
[1730943462235,44.15104007,190.97,190.9,0.12549]
[1730943462560,44.15104007,190.97,190.89,27.89074007]
[1730943462877,27.89074007,190.97,190.9,0.12549]
[1730943463541,27.89074007,190.95,190.9,0.12549]
[1730943463970,6.4661,191.02,190.91,0.12549]
[1730943464137,27.89074007,190.97,190.91,0.12549]
[1730943464333,27.89074007,190.96,190.91,0.12549]
[1730943464539,27.89074007,190.98,190.91,0.12549]
[1730943464862,27.89074007,190.97,190.91,0.12549]
[1730943465176,27.89074007,190.96,190.9,0.12549]
[1730943465740,5.4649397,191.04,190.95,27.89074007]
[1730943465963,33.35567977,191.04,190.96,5.87824394]
[1730943466145,33.35567977,191.04,190.97,0.12549]
[1730943466965,33.35567977,191.04,190.95,27.89074007]
[1730943467131,33.35567977,191.04,190.97,27.89074007]
[1730943467337,10.77166031,191.15,191.03,27.89074007]
[1730943467560,27.89074007,191.12,191.04,33.05516925]
[1730943467740,27.89074007,191.12,191.04,39.42218492]
[1730943468559,27.89074007,191.12,191.05,5.35969]
[1730943468876,10.77166031,191.15,191.11,0.12549]
[1730943469041,10.77166031,191.15,191.12,5.16442918]
[1730943469364,38.66240038,191.15,191.07,27.89074007]
[1730943469661,27.89074007,191.13,191.05,33.12494007]
[1730943469851,27.89074007,191.12,191.05,5.2342]
[1730943470186,27.89074007,191.11,191.06,0.12549]
[1730943470358,27.89074007,191.12,191.05,5.2342]
[1730943470657,38.66240038,191.15,191.07,28.01623007]
[1730943471073,38.66240038,191.15,191.07,39.63188739]
[1730943471240,10.77166031,191.15,191.1,0.12549]
[1730943471552,10.77166031,191.15,191.1,39.90633183]
[1730943471750,10.77166031,191.15,191.1,12.01559176]
[1730943471939,10.77166031,191.15,191.1,39.90633183]
[1730943472139,10.77166031,191.15,191.1,5.28991918]
[1730943472741,10.77166031,191.15,191.1,0.12549]
[1730943473048,10.77166031,191.15,191.11,0.12549]
[1730943473473,38.66240038,191.15,191.03,5.16442918]
[1730943473767,10.77166031,191.15,191.09,0.12549]